fUSD/lending_fUSD_20250818
["ID","MTS","AMOUNT","RATE_DAILY","PERIOD"]
[380016901,1755475865161,-2113.82,0.00013698,2]
[380016902,1755475865171,-2873.9,0.00013698,2]
[380016903,1755475865183,-915.79,0.00013698,2]
[380016904,1755475865193,-301.30205,0.00013698,2]
[380016905,1755475865202,-151.0,0.00013698,2]
[380016906,1755475865212,-16832.4,0.00013698,2]
[380016907,1755475865222,-11430.34,0.00013698,2]
[380016908,1755475865232,-400.0,0.00013698,2]
[380016909,1755475865241,-2826.79,0.00013698,2]
[380016910,1755475865250,-6295.75,0.00013698,2]
[380016911,1755475865260,-759.730161,0.00013698,2]
[380016912,1755475865269,-400.0,0.00013698,2]
[380016913,1755475865279,-400.0,0.00013698,2]
[380016914,1755475865288,-819.3,0.00013698,2]
[380016915,1755475865298,-400.0,0.00013698,2]
[380016916,1755475865307,-151.0,0.00013698,2]
[380016917,1755475865318,-301.30205,0.00013698,2]
[380016918,1755475865329,-2725.42,0.00013698,2]
[380016919,1755475865342,-1575.92,0.00013698,2]
[380016920,1755475865352,-759.730161,0.00013698,2]
[380016921,1755475865364,-2141.84,0.00013698,2]
[380016922,1755475865374,-400.0,0.00013698,2]
[380016923,1755475865383,-400.0,0.00013698,2]
[380016924,1755475865393,-830.233767,0.00013698,2]
[380016925,1755475865403,-3551.89,0.00013698,2]
[380016926,1755475865412,-1151.303306,0.00013698,2]
[380016927,1755475865422,-450.82,0.00013698,2]
[380016928,1755475865431,-8329.88,0.00013698,2]
[380016929,1755475865441,-2679.852368,0.00013698,2]
[380016930,1755475865450,-400.30794065,0.00013698,2]
[380016931,1755475865460,-400.0,0.00013698,2]
[380016932,1755475865469,-400.0,0.00013698,2]
[380016933,1755475865479,-1841.71,0.00013698,2]
[380016934,1755475865488,-151.0,0.00013698,2]
[380016935,1755475865498,-1537.33,0.00013698,2]
[380016936,1755475865508,-400.0,0.00013698,2]
[380016937,1755475865517,-1285.69,0.00013698,2]
[380016938,1755475865527,-1151.303306,0.00013698,2]
[380016939,1755475865541,-400.0,0.00013698,2]
[380016940,1755475865550,-2679.852368,0.00013698,2]
[380016941,1755475865559,-378.598942,0.00013698,2]
[380016942,1755475865569,-3924.01,0.00013698,2]
[380016943,1755475865580,-400.0,0.00013698,2]
[380016944,1755475865590,-400.0,0.00013698,2]
[380016945,1755475865600,-773.06,0.00013698,2]
[380016946,1755475865610,-500.0,0.00013698,2]
[380016947,1755475865621,-500.0,0.00013698,2]
[380016948,1755475865630,-1136.97,0.00013698,2]
[380016949,1755475865639,-2356.4,0.00013698,2]
[380016950,1755475865649,-887.53,0.00013698,2]
[380016951,1755475865659,-500.0,0.00013698,2]
[380016952,1755475865668,-500.0,0.00013698,2]
[380016953,1755475865678,-500.0,0.00013698,2]
[380016954,1755475865688,-400.0,0.00013698,2]
[380016955,1755475865698,-500.0,0.00013698,2]
[380016956,1755475865708,-378.598942,0.00013698,2]
[380016957,1755475865718,-10001.94,0.00013698,2]
[380016958,1755475865727,-500.0,0.00013698,2]
[380016959,1755475865737,-868.43,0.00013698,2]
[380016960,1755475865747,-500.0,0.00013698,2]
[380016961,1755475865757,-500.0,0.00013698,2]
[380016962,1755475865767,-500.0,0.00013698,2]
[380016963,1755475865777,-500.0,0.00013698,2]
[380016964,1755475865787,-500.0,0.00013698,2]
[380016965,1755475865796,-500.0,0.00013698,2]
[380016966,1755475865805,-500.0,0.00013698,2]
[380016967,1755475865815,-221.52,0.00013698,2]
[380016968,1755475865824,-1437.61,0.00013698,2]
[380016969,1755475865836,-400.0,0.00013698,2]
[380016970,1755475865846,-500.0,0.00013698,2]
[380016971,1755475865856,-10419.47,0.00013698,2]
[380016972,1755475865866,-500.0,0.00013698,2]
[380016973,1755475865876,-500.0,0.00013698,2]
[380016974,1755475865885,-6034.1,0.00013698,2]
[380016975,1755475865894,-400.0,0.00013698,2]
[380016976,1755475865904,-5026.2,0.00013698,2]
[380016977,1755475865915,-151.0,0.00013698,2]
[380016978,1755475865925,-5057.41,0.00013698,2]
[380016979,1755475865935,-185.529936,0.00013698,2]
[380016980,1755475865945,-400.0,0.00013698,2]
[380016981,1755475865956,-2901.54,0.00013698,2]
[380016982,1755475865966,-400.0,0.00013698,2]
[380016983,1755475865976,-400.0,0.00013698,2]
[380016984,1755475865986,-2989.54,0.00013698,2]
[380016985,1755475865995,-1236.11,0.00013698,2]
[380016986,1755475866006,-3257.64,0.00013698,2]
[380016987,1755475866017,-400.0,0.00013698,2]
[380016988,1755475866028,-3821.18,0.00013698,2]
[380016989,1755475866038,-185.529936,0.00013698,2]
[380016990,1755475866049,-151.0,0.00013698,2]
[380016991,1755475866060,-1566.45,0.00013698,2]
[380016992,1755475866071,-330.366117,0.00013698,2]
[380016993,1755475866086,-400.0,0.00013698,2]
[380016994,1755475866098,-2976.82,0.00013698,2]
[380016995,1755475866109,-1140.08,0.00013698,2]
[380016996,1755475866119,-4081.3,0.00013698,2]
[380016997,1755475866129,-3302.07,0.00013698,2]
[380016998,1755475866138,-330.366117,0.00013698,2]
[380016999,1755475866148,-4250.04,0.00013698,2]
[380017000,1755475866157,-400.0,0.00013698,2]
[380017001,1755475866167,-400.0,0.00013698,2]
[380017002,1755475866176,-500.0,0.00013698,2]
[380017003,1755475866186,-500.0,0.00013698,2]
[380017004,1755475866195,-400.0,0.00013698,2]
[380017005,1755475866205,-15533.89,0.00013698,2]
[380017006,1755475866214,-500.0,0.00013698,2]
[380017007,1755475866223,-1046.59,0.00013698,2]
[380017008,1755475866233,-3939.53,0.00013698,2]
[380017009,1755475866242,-1090.88,0.00013698,2]
[380017010,1755475866252,-6786.57,0.00013698,2]
[380017011,1755475866261,-1049.66,0.00013698,2]
[380017012,1755475866271,-4220.39,0.00013698,2]
[380017013,1755475866281,-4388.66,0.00013698,2]
[380017014,1755475866290,-1031.96,0.00013698,2]
[380017015,1755475866300,-151.0,0.00013698,2]
[380017016,1755475866310,-400.0,0.00013698,2]
[380017017,1755475866319,-2181.45,0.00013698,2]
[380017018,1755475866332,-704.06,0.00013698,2]
[380017019,1755475866342,-2615.84619,0.00013698,2]
[380017020,1755475866351,-945.948449,0.00013698,2]
[380017021,1755475866361,-400.0,0.00013698,2]
[380017022,1755475866370,-151.0,0.00013698,2]
[380017023,1755475866380,-11169.65,0.00013698,2]
[380017024,1755475866389,-400.0,0.00013698,2]
[380017025,1755475866399,-10135.51,0.00013698,2]
[380017026,1755475866408,-945.948449,0.00013698,2]
[380017027,1755475866418,-400.0,0.00013698,2]
[380017028,1755475866427,-1267.89,0.00013698,2]
[380017029,1755475866436,-4330.03,0.00013698,2]
[380017030,1755475866446,-4368.5,0.00013698,2]
[380017031,1755475866456,-595.71,0.00013698,2]
[380017032,1755475866465,-400.0,0.00013698,2]
[380017033,1755475866475,-2615.84619,0.00013698,2]
[380017034,1755475866485,-965.08,0.00013698,2]
[380017035,1755475866495,-195.710042,0.00013698,2]
[380017036,1755475866505,-10449.97,0.00013698,2]
[380017037,1755475866515,-2046.5,0.00013698,2]
[380017038,1755475866524,-576.1,0.00013698,2]
[380017039,1755475866535,-400.0,0.00013698,2]
[380017040,1755475866547,-1864.82,0.00013698,2]
[380017041,1755475866556,-400.0,0.00013698,2]
[380017042,1755475866566,-5101.13,0.00013698,2]
[380017043,1755475866577,-400.0,0.00013698,2]
[380017044,1755475866586,-2420.67,0.00013698,2]
[380017045,1755475866597,-13285.19,0.00013698,2]
[380017046,1755475866606,-400.0,0.00013698,2]
[380017047,1755475866616,-456.592985,0.00013698,2]
[380017048,1755475866626,-151.0,0.00013698,2]
[380017049,1755475866635,-400.0,0.00013698,2]
[380017050,1755475866645,-400.0,0.00013698,2]
[380017051,1755475866654,-3934.95,0.00013698,2]
[380017052,1755475866664,-2689.91,0.00013698,2]
[380017053,1755475866674,-2523.25,0.00013698,2]
[380017054,1755475866683,-456.592985,0.00013698,2]
[380017055,1755475866692,-725.8,0.00013698,2]
[380017056,1755475866703,-727.771003,0.00013698,2]
[380017057,1755475866714,-3231.94,0.00013698,2]
[380017058,1755475866724,-443.22360742,0.00013698,2]
[380017059,1755475866734,-3876.03,0.00013698,2]
[380017060,1755475866744,-954.69,0.00013698,2]
[380017061,1755475866756,-1065.41,0.00013698,2]
[380017062,1755475866766,-400.0,0.00013698,2]
[380017063,1755475866775,-2304.1,0.00013698,2]
[380017064,1755475866785,-400.0,0.00013698,2]
[380017065,1755475866795,-4223.9,0.00013698,2]
[380017066,1755475866804,-400.0,0.00013698,2]
[380017067,1755475866813,-519.278369,0.00013698,2]
[380017068,1755475866823,-788.12,0.00013698,2]
[380017069,1755475866833,-400.0,0.00013698,2]
[380017070,1755475866843,-885.494999,0.00013698,2]
[380017071,1755475866852,-727.771003,0.00013698,2]
[380017072,1755475866862,-400.0,0.00013698,2]
[380017073,1755475866871,-400.0,0.00013698,2]
[380017074,1755475866880,-1971.08,0.00013698,2]
[380017075,1755475866890,-11589.53,0.00013698,2]
[380017076,1755475866899,-151.0,0.00013698,2]
[380017077,1755475866908,-400.0,0.00013698,2]
[380017078,1755475866918,-519.278369,0.00013698,2]
[380017079,1755475866927,-885.494999,0.00013698,2]
[380017080,1755475866937,-151.0,0.00013698,2]
[380017081,1755475866948,-3724.46,0.00013698,2]
[380017082,1755475866958,-3433.29,0.00013698,2]
[380017083,1755475866967,-400.0,0.00013698,2]
[380017084,1755475866976,-400.0,0.00013698,2]
[380017085,1755475866986,-400.0,0.00013698,2]
[380017086,1755475866995,-2338.73,0.00013698,2]
[380017087,1755475867005,-1058.8,0.00013698,2]
[380017088,1755475867014,-400.0,0.00013698,2]
[380017089,1755475867024,-1000.0,0.00013698,2]
[380017090,1755475867034,-2522.03,0.00013698,2]
[380017091,1755475867045,-1225.78,0.00013698,2]
[380017092,1755475867055,-3286.57,0.00013698,2]
[380017093,1755475867065,-400.0,0.00013698,2]
[380017094,1755475867076,-151.0,0.00013698,2]
[380017095,1755475867086,-753.79,0.00013698,2]
[380017096,1755475867096,-4997.26,0.00013698,2]
[380017097,1755475867106,-400.0,0.00013698,2]
[380017098,1755475867117,-400.0,0.00013698,2]
[380017099,1755475867127,-151.0,0.00013698,2]
[380017100,1755475867138,-3817.58,0.00013698,2]
[380017101,1755475867148,-5754.1,0.00013698,2]
[380017102,1755475867159,-564.4,0.00013698,2]
[380017103,1755475867172,-546.37,0.00013698,2]
[380017104,1755475867181,-400.0,0.00013698,2]
[380017105,1755475867191,-151.90402,0.00013698,2]
[380017106,1755475867200,-151.0,0.00013698,2]
[380017107,1755475867210,-400.0,0.00013698,2]
[380017108,1755475867219,-400.0,0.00013698,2]
[380017109,1755475867229,-478.01,0.00013698,2]
[380017110,1755475867241,-4967.76,0.00013698,2]
[380017111,1755475867250,-570.74,0.00013698,2]
[380017112,1755475867262,-972.053186,0.00013698,2]
[380017113,1755475867274,-400.1403414,0.00013698,2]
[380017114,1755475867284,-400.0,0.00013698,2]
[380017115,1755475867294,-400.0,0.00013698,2]
[380017116,1755475867303,-400.0,0.00013698,2]
[380017117,1755475867314,-5923.84,0.00013698,2]
[380017118,1755475867324,-400.0,0.00013698,2]
[380017119,1755475867335,-972.053186,0.00013698,2]
[380017120,1755475867346,-400.0,0.00013698,2]
[380017121,1755475867356,-400.0,0.00013698,2]
[380017122,1755475867366,-151.0,0.00013698,2]
[380017123,1755475867376,-400.0,0.00013698,2]
[380017124,1755475867386,-1603.2,0.00013698,2]
[380017125,1755475867396,-1603.2,0.00013698,2]
[380017126,1755475867406,-587.77,0.00013698,2]
[380017127,1755475867541,-1603.2,0.00013698,2]
[380017128,1755475867551,-400.0,0.00013698,2]
[380017129,1755475867562,-1603.2,0.00013698,2]
[380017130,1755475867572,-1737.82,0.00013698,2]
[380017131,1755475867584,-1603.2,0.00013698,2]
[380017132,1755475867594,-1603.2,0.00013698,2]
[380017133,1755475867603,-1603.2,0.00013698,2]
[380017134,1755475867613,-1603.2,0.00013698,2]
[380017135,1755475867623,-3829.75,0.00013698,2]
[380017136,1755475867633,-2224.04,0.00013698,2]
[380017137,1755475867642,-1603.2,0.00013698,2]
[380017138,1755475867651,-400.0,0.00013698,2]
[380017139,1755475867662,-1603.2,0.00013698,2]
[380017140,1755475867672,-400.0,0.00013698,2]
[380017141,1755475867682,-1603.2,0.00013698,2]
[380017142,1755475867691,-1603.2,0.00013698,2]
[380017143,1755475867700,-1603.2,0.00013698,2]
[380017144,1755475867710,-1603.2,0.00013698,2]
[380017145,1755475867720,-1603.2,0.00013698,2]
[380017146,1755475867730,-1603.2,0.00013698,2]
[380017147,1755475867739,-500.0,0.00013698,2]
[380017148,1755475867749,-1603.2,0.00013698,2]
[380017149,1755475867759,-500.0,0.00013698,2]
[380017150,1755475867770,-3086.02,0.00013698,2]
[380017151,1755475867779,-10403.2,0.00013698,2]
[380017152,1755475867788,-1603.2,0.00013698,2]
[380017153,1755475867798,-500.0,0.00013698,2]
[380017154,1755475867808,-400.0,0.00013698,2]
[380017155,1755475867818,-1603.2,0.00013698,2]
[380017156,1755475867829,-502.65797854,0.00013698,2]
[380017157,1755475867839,-1603.2,0.00013698,2]
[380017158,1755475867848,-400.0,0.00013698,2]
[380017159,1755475867858,-400.0,0.00013698,2]
[380017160,1755475867867,-1603.2,0.00013698,2]
[380017161,1755475867877,-1603.2,0.00013698,2]
[380017162,1755475867886,-4229.84,0.00013698,2]
[380017163,1755475867895,-1603.2,0.00013698,2]
[380017164,1755475867905,-500.0,0.00013698,2]
[380017165,1755475867916,-1603.29989879,0.00013698,2]
[380017166,1755475867926,-500.0,0.00013698,2]
[380017167,1755475867935,-500.0,0.00013698,2]
[380017168,1755475867945,-1823.54,0.00013698,2]
[380017169,1755475867955,-400.0,0.00013698,2]
[380017170,1755475867964,-500.0,0.00013698,2]
[380017171,1755475867974,-509.37564423,0.00013698,2]
[380017172,1755475867983,-500.0,0.00013698,2]
[380017173,1755475867993,-500.0,0.00013698,2]
[380017174,1755475868003,-500.0,0.00013698,2]
[380017175,1755475868013,-500.0,0.00013698,2]
[380017176,1755475868023,-400.0,0.00013698,2]
[380017177,1755475868032,-500.0,0.00013698,2]
[380017178,1755475868042,-534.94778896,0.00013698,2]
[380017179,1755475868051,-400.0,0.00013698,2]
[380017180,1755475868062,-1302.44,0.00013698,2]
[380017181,1755475868071,-1032.23,0.00013698,2]
[380017182,1755475868081,-4666.31,0.00013698,2]
[380017183,1755475868091,-1904.73,0.00013698,2]
[380017184,1755475868101,-400.0,0.00013698,2]
[380017185,1755475868112,-1722.1,0.00013698,2]
[380017186,1755475868124,-10612.21,0.00013698,2]
[380017187,1755475868136,-1533.47,0.00013698,2]
[380017188,1755475868146,-400.0,0.00013698,2]
[380017189,1755475868156,-979.63,0.00013698,2]
[380017190,1755475868166,-3129.62,0.00013698,2]
[380017191,1755475868175,-3720.56,0.00013698,2]
[380017192,1755475868187,-2745.52,0.00013698,2]
[380017193,1755475868197,-400.0,0.00013698,2]
[380017194,1755475868207,-400.0,0.00013698,2]
[380017195,1755475868218,-400.0,0.00013698,2]
[380017196,1755475868230,-3343.47,0.00013698,2]
[380017197,1755475868242,-400.0,0.00013698,2]
[380017198,1755475868253,-1685.88,0.00013698,2]
[380017199,1755475868263,-400.0,0.00013698,2]
[380017200,1755475868274,-722.98,0.00013698,2]
[380017201,1755475868284,-1521.13,0.00013698,2]
[380017202,1755475868295,-11985.26,0.00013698,2]
[380017203,1755475868304,-400.0,0.00013698,2]
[380017204,1755475868314,-400.0,0.00013698,2]
[380017205,1755475868324,-400.0,0.00013698,2]
[380017206,1755475868336,-938.27,0.00013698,2]
[380017207,1755475868346,-4097.45,0.00013698,2]
[380017208,1755475868356,-2477.31,0.00013698,2]
[380017209,1755475868366,-3907.34,0.00013698,2]
[380017210,1755475868376,-400.0,0.00013698,2]
[380017211,1755475868386,-151.0,0.00013698,2]
[380017212,1755475868396,-3250.23,0.00013698,2]
[380017213,1755475868406,-151.0,0.00013698,2]
[380017214,1755475868416,-400.0,0.00013698,2]
[380017215,1755475868425,-2468.07,0.00013698,2]
[380017216,1755475868435,-658.58,0.00013698,2]
[380017217,1755475868445,-400.0,0.00013698,2]
[380017218,1755475868454,-400.0,0.00013698,2]
[380017219,1755475868464,-6624.83,0.00013698,2]
[380017220,1755475868474,-1365.56,0.00013698,2]
[380017221,1755475868484,-521.15,0.00013698,2]
[380017222,1755475868494,-400.0,0.00013698,2]
[380017223,1755475868504,-151.0,0.00013698,2]
[380017224,1755475868513,-1855.445732,0.00013698,2]
[380017225,1755475868524,-7591.18,0.00013698,2]
[380017226,1755475868544,-509.58,0.00013698,2]
[380017227,1755475868557,-1441.82,0.00013698,2]
[380017228,1755475868568,-2604.91,0.00013698,2]
[380017229,1755475868580,-400.0,0.00013698,2]
[380017230,1755475868591,-151.0,0.00013698,2]
[380017231,1755475868602,-1429.77,0.00013698,2]
[380017232,1755475868614,-400.0,0.00013698,2]
[380017233,1755475868625,-2977.27,0.00013698,2]
[380017234,1755475868636,-400.0,0.00013698,2]
[380017235,1755475868647,-177.23621,0.00013698,2]
[380017236,1755475868657,-994.51,0.00013698,2]
[380017237,1755475868668,-400.0,0.00013698,2]
[380017238,1755475868679,-654.29,0.00013698,2]
[380017239,1755475868689,-400.0,0.00013698,2]
[380017240,1755475868699,-400.0,0.00013698,2]
[380017241,1755475868708,-744.85,0.00013698,2]
[380017242,1755475868718,-1061.86,0.00013698,2]
[380017243,1755475868729,-400.0,0.00013698,2]
[380017244,1755475868739,-1794.71,0.00013698,2]
[380017245,1755475868750,-151.0,0.00013698,2]
[380017246,1755475868760,-151.0,0.00013698,2]
[380017247,1755475868770,-400.0,0.00013698,2]
[380017248,1755475868780,-5454.16,0.00013698,2]
[380017249,1755475868790,-2588.87,0.00013698,2]
[380017250,1755475868800,-177.23621,0.00013698,2]
[380017251,1755475868810,-400.0,0.00013698,2]
[380017252,1755475868820,-12033.86,0.00013698,2]
[380017253,1755475868831,-8129.93,0.00013698,2]
[380017254,1755475868841,-400.0,0.00013698,2]
[380017255,1755475868852,-444.77,0.00013698,2]
[380017256,1755475868862,-4679.17,0.00013698,2]
[380017257,1755475868872,-6982.15,0.00013698,2]
[380017258,1755475868882,-1855.445732,0.00013698,2]
[380017259,1755475868892,-151.0,0.00013698,2]
[380017260,1755475868902,-919.730376,0.00013698,2]
[380017261,1755475868912,-2826.43,0.00013698,2]
[380017262,1755475868924,-7843.75,0.00013698,2]
[380017263,1755475868936,-926.54,0.00013698,2]
[380017264,1755475868946,-151.0,0.00013698,2]
[380017265,1755475868959,-151.0,0.00013698,2]
[380017266,1755475868971,-2577.81,0.00013698,2]
[380017267,1755475868981,-1559.17,0.00013698,2]
[380017268,1755475868999,-151.0,0.00013698,2]
[380017269,1755475869009,-400.0,0.00013698,2]
[380017270,1755475869021,-947.68,0.00013698,2]
[380017271,1755475869032,-500.0,0.00013698,2]
[380017272,1755475869043,-919.730376,0.00013698,2]
[380017273,1755475869054,-500.0,0.00013698,2]
[380017274,1755475869064,-400.0,0.00013698,2]
[380017275,1755475869074,-500.0,0.00013698,2]
[380017276,1755475869085,-400.0,0.00013698,2]
[380017277,1755475869096,-500.0,0.00013698,2]
[380017278,1755475869107,-500.0,0.00013698,2]
[380017279,1755475869118,-231.631915,0.00013698,2]
[380017280,1755475869130,-500.0,0.00013698,2]
[380017281,1755475869144,-500.0,0.00013698,2]
[380017282,1755475869157,-400.0,0.00013698,2]
[380017283,1755475869185,-500.0,0.00013698,2]
[380017284,1755475869211,-563.33,0.00013698,2]
[380017285,1755475869223,-400.0,0.00013698,2]
[380017286,1755475869234,-400.0,0.00013698,2]
[380017287,1755475869245,-400.0,0.00013698,2]
[380017288,1755475869256,-400.0,0.00013698,2]
[380017289,1755475869267,-1181.254767,0.00013698,2]
[380017290,1755475869277,-979.55,0.00013698,2]
[380017291,1755475869288,-7890.1,0.00013698,2]
[380017292,1755475869299,-231.631915,0.00013698,2]
[380017293,1755475869309,-656.33,0.00013698,2]
[380017294,1755475869320,-400.0,0.00013698,2]
[380017295,1755475869331,-400.0,0.00013698,2]
[380017296,1755475869342,-400.0,0.00013698,2]
[380017297,1755475869353,-2440.98,0.00013698,2]
[380017298,1755475869363,-202.13,0.00013698,2]
[380017299,1755475869373,-203.4,0.00013698,2]
[380017300,1755475869384,-304.92,0.00013698,2]
[380017301,1755475869394,-200.93,0.00013698,2]
[380017302,1755475869405,-150.01,0.00013698,2]
[380017303,1755475869415,-200.0,0.00013699,2]
[380017304,1755475869426,-200.0,0.00013699,2]
[380017305,1755475869437,-200.0,0.00013699,2]
[380017306,1755475869447,-1669.83,0.00013699,2]
[380017307,1755475869458,-151.0,0.00013699,2]
[380017308,1755475869468,-151.0,0.00013699,2]
[380017309,1755475869484,-610.0,0.00013699,2]
[380017310,1755475869495,-1500.0,0.00013699,2]
[380017311,1755475869505,-3619.63,0.00013699,2]
[380017312,1755475869516,-3408.64,0.00013699,2]
[380017313,1755475869527,-306.76,0.00013699,2]
[380017314,1755475869542,-255.64,0.00013699,2]
[380017315,1755475869553,-883.057518,0.00013699,2]
[380017316,1755475869564,-883.057518,0.00013699,2]
[380017317,1755475869575,-883.057518,0.00013699,2]
[380017318,1755475869586,-883.057518,0.00013699,2]
[380017319,1755475869597,-213.03,0.00013699,2]
[380017320,1755475869607,-177.53,0.00013699,2]
[380017321,1755475869619,-887.65,0.00013699,2]
[380017322,1755475869630,-1000.0,0.00013699,2]
[380017323,1755475869641,-2629.875582,0.00013699,2]
[380017324,1755475869651,-2629.875582,0.00013699,2]
[380017325,1755475869662,-2629.875582,0.00013699,2]
[380017326,1755475869673,-2629.875582,0.00013699,2]
[380017327,1755475869683,-313.347966,0.00013699,2]
[380017328,1755475869693,-313.347966,0.00013699,2]
[380017329,1755475869705,-313.347966,0.00013699,2]
[380017330,1755475869718,-313.347966,0.00013699,2]
[380017331,1755475869730,-4883.65,0.00013699,2]
[380017332,1755475869740,-172.495525,0.00013699,2]
[380017333,1755475869751,-172.495525,0.00013699,2]
[380017334,1755475869761,-172.495525,0.00013699,2]
[380017335,1755475869772,-172.495525,0.00013699,2]
[380017336,1755475869782,-500.0,0.00013699,2]
[380017337,1755475869792,-500.0,0.00013699,2]
[380017338,1755475869802,-500.0,0.00013699,2]
[380017339,1755475869812,-500.0,0.00013699,2]
[380017340,1755475869823,-500.0,0.00013699,2]
[380017341,1755475869833,-500.0,0.00013699,2]
[380017342,1755475869843,-201.4287731,0.00013699,2]
[380017343,1755475870374,-500.0,0.00013699,2]
[380017344,1755475870384,-500.0,0.00013699,2]
[380017345,1755475870394,-166.15712196,0.00013699,2]
[380017346,1755475870403,-163.64967826,0.00013699,2]
[380017347,1755475870413,-500.0,0.00013699,2]
[380017348,1755475870423,-500.0,0.00013699,2]
[380017349,1755475870432,-159.97712628,0.00013699,2]
[380017350,1755475870442,-500.0,0.00013699,2]
[380017351,1755475870452,-500.0,0.00013699,2]
[380017352,1755475870462,-159.94091586,0.00013699,2]
[380017353,1755475870472,-500.11132884,0.00013699,2]
[380017354,1755475870482,-159.9826579,0.00013699,2]
[380017355,1755475870491,-565.62471389,0.00013699,2]
[380017356,1755475870501,-159.97947271,0.00013699,2]
[380017357,1755475870511,-159.99647883,0.00013699,2]
[380017358,1755475870520,-159.9755933,0.00013699,2]
[380017359,1755475870530,-500.0,0.00013699,2]
[380017360,1755475870545,-159.96503253,0.00013699,2]
[380017361,1755475870554,-159.96253318,0.00013699,2]
[380017362,1755475870563,-500.0,0.00013699,2]
[380017363,1755475870573,-542.8217627,0.00013699,2]
[380017364,1755475870585,-500.0,0.00013699,2]
[380017365,1755475870594,-159.97693689,0.00013699,2]
[380017366,1755475870604,-160.4129949,0.00013699,2]
[380017367,1755475870615,-159.9679502,0.00013699,2]
[380017368,1755475870625,-500.0,0.00013699,2]
[380017369,1755475870635,-500.0,0.00013699,2]
[380017370,1755475870645,-500.0,0.00013699,2]
[380017371,1755475870655,-500.0,0.00013699,2]
[380017372,1755475870664,-500.0,0.00013699,2]
[380017373,1755475870674,-503.25424737,0.00013699,2]
[380017374,1755475870683,-500.0,0.00013699,2]
[380017375,1755475870693,-500.0,0.00013699,2]
[380017376,1755475870702,-161.86622376,0.00013699,2]
[380017377,1755475870712,-518.61401667,0.00013699,2]
[380017378,1755475870722,-500.11185006,0.00013699,2]
[380017379,1755475870731,-511.19371281,0.00013699,2]
[380017380,1755475870741,-500.0,0.00013699,2]
[380017381,1755475870751,-504.30753601,0.00013699,2]
[380017382,1755475870761,-500.0,0.00013699,2]
[380017383,1755475870777,-336.8496944,0.00013699,2]
[380017384,1755475870791,-500.0,0.00013699,2]
[380017385,1755475870802,-500.0,0.00013699,2]
[380017386,1755475870816,-500.0,0.00013699,2]
[380017387,1755475870826,-500.0,0.00013699,2]
[380017388,1755475870837,-500.0,0.00013699,2]
[380017389,1755475870847,-500.0,0.00013699,2]
[380017390,1755475870857,-275.94319715,0.00013699,2]
[380017391,1755475870868,-159.97891412,0.00013699,2]
[380017392,1755475870878,-159.97285632,0.00013699,2]
[380017393,1755475870888,-500.3057304,0.00013699,2]
[380017394,1755475870898,-159.99262035,0.00013699,2]
[380017395,1755475870910,-159.98253334,0.00013699,2]
[380017396,1755475870921,-159.98510813,0.00013699,2]
[380017397,1755475870932,-159.98565705,0.00013699,2]
[380017398,1755475870942,-500.0,0.00013699,2]
[380017399,1755475870954,-159.97165288,0.00013699,2]
[380017400,1755475870964,-164.89215187,0.00013699,2]